[Event "*** Titled Tuesday Blitz"]
[Site "Chess.com"]
[Date "2021.02.09"]
[Round "3"]
[White "KaterinaMiroshnik"]
[Black "Zmeeed63"]
[Result "1-0"]
[WhiteElo "2608"]
[BlackElo "2411"]
[TimeControl "180+1"]
[EndTime "10:30:17 PST"]
[Termination "KaterinaMiroshnik won on time"]

1. d3 {[%clk 0:03:00.9]} 1... Nf6 {[%clk 0:02:57.9]} 2. Nf3 {[%clk 0:03:00.5]}
2... d5 {[%clk 0:02:55.1]} 3. Nbd2 {[%clk 0:03:01.4]} 3... c5 {[%clk 0:02:53]}
4. e4 {[%clk 0:03:02.3]} 4... Nc6 {[%clk 0:02:51.2]} 5. Be2 {[%clk 0:03:01.8]}
5... e5 {[%clk 0:02:48.2]} 6. O-O {[%clk 0:03:01.6]} 6... Be7 {[%clk 0:02:46.4]}
7. c3 {[%clk 0:03:01.6]} 7... O-O {[%clk 0:02:44.5]} 8. Qc2 {[%clk 0:03:01.4]}
8... Be6 {[%clk 0:02:41.5]} 9. b3 {[%clk 0:03:00.4]} 9... h6 {[%clk 0:02:39.4]}
10. Bb2 {[%clk 0:03:00.1]} 10... Rc8 {[%clk 0:02:36.5]} 11. a3 {[%clk
0:03:00.1]} 11... d4 {[%clk 0:02:30.8]} 12. c4 {[%clk 0:02:59.7]} 12... a6
{[%clk 0:02:26.9]} 13. h3 {[%clk 0:02:59.3]} 13... Nh5 {[%clk 0:02:24.2]} 14.
Nh2 {[%clk 0:02:54.4]} 14... Nf4 {[%clk 0:02:21]} 15. Bg4 {[%clk 0:02:52.9]}
15... Bxg4 {[%clk 0:02:18.8]} 16. Nxg4 {[%clk 0:02:52.2]} 16... Qd6 {[%clk
0:02:16.9]} 17. Nf3 {[%clk 0:02:40.2]} 17... h5 {[%clk 0:02:12.8]} 18. Ngh2
{[%clk 0:02:39.1]} 18... Qg6 {[%clk 0:02:12.2]} 19. Ne1 {[%clk 0:02:29.3]} 19...
Nxh3+ {[%clk 0:02:11.8]} 20. Kh1 {[%clk 0:02:29.3]} 20... Nf4 {[%clk 0:02:12.1]}
21. Rg1 {[%clk 0:02:25.5]} 21... Qh6 {[%clk 0:02:06.3]} 22. Bc1 {[%clk
0:02:12.6]} 22... Qh7 {[%clk 0:01:58]} 23. Bd2 {[%clk 0:02:06.4]} 23... Kh8
{[%clk 0:01:56.4]} 24. g3 {[%clk 0:01:55.4]} 24... Nh3 {[%clk 0:01:55.8]} 25.
Rg2 {[%clk 0:01:44.9]} 25... Nd8 {[%clk 0:01:55.4]} 26. Nhf3 {[%clk 0:01:29.1]}
26... Nc6 {[%clk 0:01:52.2]} 27. Rh2 {[%clk 0:01:25.9]} 27... g5 {[%clk
0:01:14.5]} 28. Rxh3 {[%clk 0:01:22.5]} 28... g4 {[%clk 0:01:11.4]} 29. Rh2
{[%clk 0:01:22.4]} 29... gxf3 {[%clk 0:01:10.2]} 30. g4 {[%clk 0:01:21.2]} 30...
h4 {[%clk 0:01:08.4]} 31. Nxf3 {[%clk 0:01:21.2]} 31... Kg7 {[%clk 0:01:03.7]}
32. g5 {[%clk 0:01:18.3]} 32... h3 {[%clk 0:00:59.1]} 33. Rg1 {[%clk 0:01:14.5]}
33... Rh8 {[%clk 0:00:56.3]} 34. Qd1 {[%clk 0:01:11.2]} 34... Rcg8 {[%clk
0:00:53.9]} 35. Rg3 {[%clk 0:01:11]} 35... Qg6 {[%clk 0:00:48.9]} 36. Qf1 {[%clk
0:01:10.8]} 36... Qe6 {[%clk 0:00:46]} 37. Rgxh3 {[%clk 0:01:10.8]} 37... Rxh3
{[%clk 0:00:44]} 38. Rxh3 {[%clk 0:01:09.6]} 38... Rh8 {[%clk 0:00:41.5]} 39.
Nh4 {[%clk 0:01:06.7]} 39... Kg8 {[%clk 0:00:39.3]} 40. Nf5 {[%clk 0:01:06.7]}
40... Bf8 {[%clk 0:00:36.1]} 41. Rxh8+ {[%clk 0:00:59.2]} 41... Kxh8 {[%clk
0:00:37]} 42. Qh3+ {[%clk 0:00:58.9]} 42... Kg8 {[%clk 0:00:34.5]} 43. Kg2
{[%clk 0:00:52.7]} 43... b5 {[%clk 0:00:32.2]} 44. Qg4 {[%clk 0:00:49.5]} 44...
b4 {[%clk 0:00:29.2]} 45. axb4 {[%clk 0:00:49.6]} 45... cxb4 {[%clk 0:00:27.1]}
46. f4 {[%clk 0:00:49.1]} 46... exf4 {[%clk 0:00:25.5]} 47. Bxf4 {[%clk
0:00:47.3]} 47... a5 {[%clk 0:00:25.6]} 48. Kf3 {[%clk 0:00:44.3]} 48... a4
{[%clk 0:00:22.9]} 49. bxa4 {[%clk 0:00:43.6]} 49... b3 {[%clk 0:00:22.3]} 50.
Qg1 {[%clk 0:00:44]} 50... b2 {[%clk 0:00:19.6]} 51. Qb1 {[%clk 0:00:41.2]}
51... Ba3 {[%clk 0:00:19.3]} 52. Nh6+ {[%clk 0:00:38.9]} 52... Kf8 {[%clk
0:00:16.9]} 53. Ng4 {[%clk 0:00:37.8]} 53... Ke7 {[%clk 0:00:14]} 54. Qa2 {[%clk
0:00:35.3]} 54... Kd8 {[%clk 0:00:11.6]} 55. a5 {[%clk 0:00:32.6]} 55... Kc8
{[%clk 0:00:09.3]} 56. a6 {[%clk 0:00:29.3]} 56... Nb4 {[%clk 0:00:08.9]} 57. a7
{[%clk 0:00:26.6]} 57... Qa6 {[%clk 0:00:04.8]} 58. Qb3 {[%clk 0:00:26.6]} 58...
Qxa7 {[%clk 0:00:03.1]} 59. Ne5 {[%clk 0:00:26.1]} 59... Qa6 {[%clk 0:00:02.5]}
60. Nxf7 {[%clk 0:00:23.5]} 60... Kd7 {[%clk 0:00:02.7]} 61. Ne5+ {[%clk
0:00:20.1]} 61... Ke8 {[%clk 0:00:02.5]} 62. g6 {[%clk 0:00:19.3]} 62... Qe6
{[%clk 0:00:02.6]} 63. Qa4+ {[%clk 0:00:15.9]} 63... Kf8 {[%clk 0:00:02]} 64.
Bh6+ {[%clk 0:00:13]} 1-0

[Event "*** Titled Tuesday Blitz"]
[Site "Chess.com"]
[Date "2021.02.09"]
[Round "3"]
[White "NMJeevanK"]
[Black "frederiksvane"]
[Result "1/2-1/2"]
[WhiteElo "2515"]
[BlackElo "2749"]
[TimeControl "180+1"]
[EndTime "10:30:18 PST"]
[Termination "Game drawn by repetition"]

1. e4 {[%clk 0:03:00.9]} 1... c5 {[%clk 0:03:00.3]} 2. Nf3 {[%clk 0:03:01.2]}
2... g6 {[%clk 0:03:00.5]} 3. c3 {[%clk 0:03:01.5]} 3... d5 {[%clk 0:03:00.5]}
4. exd5 {[%clk 0:03:01]} 4... Qxd5 {[%clk 0:03:01.4]} 5. d3 {[%clk 0:03:01.6]}
5... Bg7 {[%clk 0:03:00.8]} 6. Be2 {[%clk 0:03:02.5]} 6... Nf6 {[%clk
0:03:00.4]} 7. O-O {[%clk 0:03:03.2]} 7... O-O {[%clk 0:03:00.8]} 8. Nbd2 {[%clk
0:03:03]} 8... Nc6 {[%clk 0:02:59.2]} 9. Nc4 {[%clk 0:03:03.1]} 9... Rd8 {[%clk
0:02:57.2]} 10. Bg5 {[%clk 0:02:54.7]} 10... h6 {[%clk 0:02:49.6]} 11. Bh4
{[%clk 0:02:50.7]} 11... Nh5 {[%clk 0:02:47.2]} 12. Ne3 {[%clk 0:02:36.9]} 12...
Qd7 {[%clk 0:02:01.6]} 13. Qa4 {[%clk 0:02:08.5]} 13... Nd4 {[%clk 0:01:51.2]}
14. Qd1 {[%clk 0:02:01.2]} 14... Nxe2+ {[%clk 0:01:43.3]} 15. Qxe2 {[%clk
0:02:02.1]} 15... g5 {[%clk 0:01:34.4]} 16. Bg3 {[%clk 0:01:34.2]} 16... Nxg3
{[%clk 0:01:34.5]} 17. fxg3 {[%clk 0:01:31.1]} 17... Qxd3 {[%clk 0:01:30.4]} 18.
Qf2 {[%clk 0:01:30.8]} 18... Be6 {[%clk 0:01:29.8]} 19. g4 {[%clk 0:01:23.8]}
19... Qg6 {[%clk 0:01:14.3]} 20. Rae1 {[%clk 0:01:18.2]} 20... Rd7 {[%clk
0:01:08.7]} 21. c4 {[%clk 0:01:11.3]} 21... Rad8 {[%clk 0:00:54.3]} 22. b3
{[%clk 0:01:11.5]} 22... b6 {[%clk 0:00:53.6]} 23. Re2 {[%clk 0:01:05]} 23...
Bf6 {[%clk 0:00:40.9]} 24. h3 {[%clk 0:00:37.8]} 24... Rd3 {[%clk 0:00:39.6]}
25. Kh1 {[%clk 0:00:26.8]} 25... h5 {[%clk 0:00:15.6]} 26. gxh5 {[%clk 0:00:22]}
26... Qxh5 {[%clk 0:00:16.5]} 27. Nh2 {[%clk 0:00:19.8]} 27... Bd4 {[%clk
0:00:13.9]} 28. Rfe1 {[%clk 0:00:20.3]} 28... Kf8 {[%clk 0:00:06.6]} 29. Qg3
{[%clk 0:00:14.6]} 29... Bxe3 {[%clk 0:00:02.9]} 30. Rxe3 {[%clk 0:00:14.8]}
30... Rxe3 {[%clk 0:00:03.5]} 31. Qxe3 {[%clk 0:00:15.3]} 31... Rd1 {[%clk
0:00:04.1]} 32. Kg1 {[%clk 0:00:15.8]} 32... Rxe1+ {[%clk 0:00:04.3]} 33. Qxe1
{[%clk 0:00:16.7]} 33... Qg6 {[%clk 0:00:03.7]} 34. Nf3 {[%clk 0:00:15.7]} 34...
Qf6 {[%clk 0:00:02.7]} 35. Qg3 {[%clk 0:00:15.5]} 35... Qf4 {[%clk 0:00:01.9]}
36. Qxg5 {[%clk 0:00:14.4]} 36... Qxg5 {[%clk 0:00:02.4]} 37. Nxg5 {[%clk
0:00:15.3]} 37... Bf5 {[%clk 0:00:03.1]} 38. a3 {[%clk 0:00:09.8]} 38... Bc2
{[%clk 0:00:03]} 39. b4 {[%clk 0:00:10.2]} 39... Bb3 {[%clk 0:00:02.6]} 40. bxc5
{[%clk 0:00:10.2]} 40... bxc5 {[%clk 0:00:03.5]} 41. Ne4 {[%clk 0:00:10.8]}
41... Bxc4 {[%clk 0:00:04.1]} 42. Nxc5 {[%clk 0:00:11.7]} 42... Ke8 {[%clk
0:00:04.2]} 43. Kf2 {[%clk 0:00:11.9]} 43... Kd8 {[%clk 0:00:04.2]} 44. Ne4
{[%clk 0:00:12.3]} 44... Kc7 {[%clk 0:00:04.1]} 45. Nd2 {[%clk 0:00:12.7]} 45...
Bd5 {[%clk 0:00:03.6]} 46. h4 {[%clk 0:00:13.1]} 46... Kd6 {[%clk 0:00:04.3]}
47. g4 {[%clk 0:00:12.9]} 47... Ke5 {[%clk 0:00:05]} 48. Ke3 {[%clk 0:00:13.2]}
48... e6 {[%clk 0:00:04.9]} 49. h5 {[%clk 0:00:11.1]} 49... Kf6 {[%clk
0:00:04.4]} 50. Kf4 {[%clk 0:00:11.2]} 50... e5+ {[%clk 0:00:04.7]} 51. Kg3
{[%clk 0:00:11.9]} 51... Kg5 {[%clk 0:00:05.1]} 52. Nf1 {[%clk 0:00:10.4]} 52...
f5 {[%clk 0:00:03.4]} 53. gxf5 {[%clk 0:00:09.9]} 53... Kxh5 {[%clk 0:00:03.8]}
54. Ne3 {[%clk 0:00:09.8]} 54... Be4 {[%clk 0:00:03.5]} 55. f6 {[%clk 0:00:08]}
55... Kg6 {[%clk 0:00:03.5]} 56. Ng4 {[%clk 0:00:08.6]} 56... Bf5 {[%clk
0:00:02.6]} 57. Nxe5+ {[%clk 0:00:08.2]} 57... Kxf6 {[%clk 0:00:03.1]} 58. Kf4
{[%clk 0:00:08.8]} 58... Ke6 {[%clk 0:00:01.8]} 59. Nf3 {[%clk 0:00:09.2]} 59...
Bd3 {[%clk 0:00:01.6]} 60. Ne5 {[%clk 0:00:09.2]} 60... Bb5 {[%clk 0:00:01.3]}
61. Ke4 {[%clk 0:00:09.4]} 61... Kd6 {[%clk 0:00:01.5]} 62. Kd4 {[%clk 0:00:10]}
62... a5 {[%clk 0:00:01.7]} 63. Nf7+ {[%clk 0:00:10.2]} 63... Kc6 {[%clk
0:00:02]} 64. Ne5+ {[%clk 0:00:11.1]} 64... Kb6 {[%clk 0:00:02.5]} 65. Nf3
{[%clk 0:00:11]} 65... Bc6 {[%clk 0:00:02.6]} 66. Nd2 {[%clk 0:00:10.8]} 66...
Kb5 {[%clk 0:00:03.3]} 67. Kc3 {[%clk 0:00:11.4]} 67... Ka4 {[%clk 0:00:03.7]}
68. Kb2 {[%clk 0:00:11.8]} 68... Bd5 {[%clk 0:00:04.4]} 69. Nf1 {[%clk
0:00:11.9]} 69... Kb5 {[%clk 0:00:05]} 70. Ne3 {[%clk 0:00:12.8]} 70... Bc6
{[%clk 0:00:05.3]} 71. Nc2 {[%clk 0:00:13.1]} 71... Kc5 {[%clk 0:00:06]} 72. Kc3
{[%clk 0:00:13.2]} 72... Kb5 {[%clk 0:00:06.6]} 73. Nd4+ {[%clk 0:00:13.1]}
73... Kc5 {[%clk 0:00:07.1]} 74. Nb3+ {[%clk 0:00:13.6]} 74... Kb5 {[%clk
0:00:07.4]} 75. Nd4+ {[%clk 0:00:14.1]} 75... Kc5 {[%clk 0:00:07.5]} 76. Nb3+
{[%clk 0:00:14.4]} 76... Kb5 {[%clk 0:00:07.9]} 77. Nd4+ {[%clk 0:00:14.6]}
1/2-1/2

[Event "*** Titled Tuesday Blitz"]
[Site "Chess.com"]
[Date "2021.02.09"]
[Round "3"]
[White "KyronGriffith"]
[Black "Funo09"]
[Result "0-1"]
[WhiteElo "2506"]
[BlackElo "2782"]
[TimeControl "180+1"]
[EndTime "10:30:22 PST"]
[Termination "Funo09 won by checkmate"]

1. e4 {[%clk 0:03:00.9]} 1... d5 {[%clk 0:02:57.3]} 2. exd5 {[%clk 0:02:59.6]}
2... Qxd5 {[%clk 0:02:58.2]} 3. Nc3 {[%clk 0:02:59.7]} 3... Qa5 {[%clk
0:02:58.9]} 4. d4 {[%clk 0:03:00.3]} 4... Nf6 {[%clk 0:02:58.5]} 5. Nf3 {[%clk
0:03:00.8]} 5... Bf5 {[%clk 0:02:58.4]} 6. Bc4 {[%clk 0:02:59.5]} 6... e6 {[%clk
0:02:58.8]} 7. Bd2 {[%clk 0:02:58]} 7... Bb4 {[%clk 0:02:59.4]} 8. a3 {[%clk
0:02:50.9]} 8... Bxc3 {[%clk 0:02:59.5]} 9. Bxc3 {[%clk 0:02:51.8]} 9... Qb6
{[%clk 0:03:00.4]} 10. O-O {[%clk 0:02:47.8]} 10... Nc6 {[%clk 0:02:58]} 11. Ne5
{[%clk 0:02:11.1]} 11... Ne4 {[%clk 0:02:45.5]} 12. Nxc6 {[%clk 0:01:54.9]}
12... Qxc6 {[%clk 0:02:46.4]} 13. Bd3 {[%clk 0:01:39.1]} 13... O-O-O {[%clk
0:01:52.6]} 14. Bxe4 {[%clk 0:01:35.7]} 14... Qxe4 {[%clk 0:01:31.2]} 15. Rc1
{[%clk 0:01:35.2]} 15... c5 {[%clk 0:01:18.1]} 16. Re1 {[%clk 0:01:34.6]} 16...
Qf4 {[%clk 0:01:08.2]} 17. g3 {[%clk 0:00:59.1]} 17... Qc7 {[%clk 0:01:04.8]}
18. d5 {[%clk 0:00:34.4]} 18... Rxd5 {[%clk 0:01:01.5]} 19. Qf3 {[%clk
0:00:33.3]} 19... Rg8 {[%clk 0:00:30.8]} 20. g4 {[%clk 0:00:32.9]} 20... Bg6
{[%clk 0:00:30.6]} 21. h3 {[%clk 0:00:33.4]} 21... h5 {[%clk 0:00:27.7]} 22. Re2
{[%clk 0:00:24]} 22... hxg4 {[%clk 0:00:27.8]} 23. hxg4 {[%clk 0:00:24.3]} 23...
Rh8 {[%clk 0:00:27.5]} 24. Qg3 {[%clk 0:00:20.4]} 24... Qxg3+ {[%clk 0:00:24.6]}
25. fxg3 {[%clk 0:00:21.3]} 25... Rh7 {[%clk 0:00:20.6]} 26. Kg2 {[%clk
0:00:19.6]} 26... Kd7 {[%clk 0:00:20.1]} 27. Rf1 {[%clk 0:00:17.9]} 27... f6
{[%clk 0:00:19.1]} 28. Rfe1 {[%clk 0:00:17.5]} 28... e5 {[%clk 0:00:18.2]} 29.
b3 {[%clk 0:00:15.5]} 29... Ke6 {[%clk 0:00:18]} 30. Bb2 {[%clk 0:00:15.8]}
30... Rd8 {[%clk 0:00:16]} 31. Rh1 {[%clk 0:00:13.2]} 31... Rxh1 {[%clk
0:00:14.4]} 32. Kxh1 {[%clk 0:00:14.1]} 32... Rd1+ {[%clk 0:00:14.4]} 33. Kg2
{[%clk 0:00:14]} 33... Kd5 {[%clk 0:00:14.2]} 34. Bc3 {[%clk 0:00:13.6]} 34...
Be4+ {[%clk 0:00:12.6]} 35. Kf2 {[%clk 0:00:13.3]} 35... Rc1 {[%clk 0:00:12.1]}
36. Rd2+ {[%clk 0:00:10.5]} 36... Ke6 {[%clk 0:00:11.9]} 37. b4 {[%clk
0:00:08.8]} 37... c4 {[%clk 0:00:11.5]} 38. Ke3 {[%clk 0:00:08.4]} 38... Bg6
{[%clk 0:00:05.5]} 39. Rd8 {[%clk 0:00:08.6]} 39... Rxc2 {[%clk 0:00:05.2]} 40.
Be1 {[%clk 0:00:08.2]} 40... Ra2 {[%clk 0:00:04.7]} 41. Rb8 {[%clk 0:00:07]}
41... Rxa3+ {[%clk 0:00:04.9]} 42. Kf2 {[%clk 0:00:07.1]} 42... c3 {[%clk
0:00:04.1]} 43. Rxb7 {[%clk 0:00:06.3]} 43... c2 {[%clk 0:00:04.6]} 44. Rc7
{[%clk 0:00:06.8]} 44... Be4 {[%clk 0:00:03.7]} 45. Bd2 {[%clk 0:00:06.3]} 45...
Ra2 {[%clk 0:00:03.6]} 46. Ke3 {[%clk 0:00:06]} 46... Bg6 {[%clk 0:00:03]} 47.
Rc6+ {[%clk 0:00:05.7]} 47... Kd7 {[%clk 0:00:02.8]} 48. Rc5 {[%clk 0:00:05.8]}
48... Ra3+ {[%clk 0:00:03.2]} 49. Kf2 {[%clk 0:00:05.4]} 49... Rb3 {[%clk
0:00:02.6]} 50. g5 {[%clk 0:00:05.4]} 50... Rb1 {[%clk 0:00:02.5]} 51. gxf6
{[%clk 0:00:04.6]} 51... gxf6 {[%clk 0:00:03.4]} 52. g4 {[%clk 0:00:05]} 52...
Rd1 {[%clk 0:00:03.9]} 53. Ke2 {[%clk 0:00:05]} 53... Be4 {[%clk 0:00:04]} 54.
g5 {[%clk 0:00:04.1]} 54... fxg5 {[%clk 0:00:03.7]} 55. Rxe5 {[%clk 0:00:02.9]}
55... Bf3+ {[%clk 0:00:04]} 56. Kxf3 {[%clk 0:00:02.3]} 56... Rxd2 {[%clk
0:00:04.2]} 57. Rc5 {[%clk 0:00:02.9]} 57... Kd6 {[%clk 0:00:02.7]} 58. Ke3
{[%clk 0:00:03.3]} 58... Rh2 {[%clk 0:00:02.4]} 59. Kf3 {[%clk 0:00:03.8]} 59...
a5 {[%clk 0:00:02.1]} 60. Rc3 {[%clk 0:00:02.5]} 60... axb4 {[%clk 0:00:02.3]}
61. Rc4 {[%clk 0:00:02.4]} 61... b3 {[%clk 0:00:02.6]} 62. Rd4+ {[%clk
0:00:02.6]} 62... Kc5 {[%clk 0:00:02.7]} 63. Rd8 {[%clk 0:00:03.3]} 63... b2
{[%clk 0:00:03.1]} 64. Rc8+ {[%clk 0:00:04]} 64... Kb4 {[%clk 0:00:04]} 65. Rb8+
{[%clk 0:00:04.4]} 65... Kc3 {[%clk 0:00:04.3]} 66. Rc8+ {[%clk 0:00:04.8]}
66... Kb3 {[%clk 0:00:04.8]} 67. Rb8+ {[%clk 0:00:05.2]} 67... Ka2 {[%clk
0:00:05.4]} 68. Ra8+ {[%clk 0:00:05.8]} 68... Kb1 {[%clk 0:00:06]} 69. Rc8
{[%clk 0:00:04.7]} 69... c1=Q {[%clk 0:00:05.7]} 70. Rf8 {[%clk 0:00:05]} 70...
Qf1+ {[%clk 0:00:05.3]} 71. Kg4 {[%clk 0:00:05.9]} 71... Qxf8 {[%clk 0:00:05.9]}
72. Kg3 {[%clk 0:00:06.1]} 72... Qf4# {[%clk 0:00:05.6]} 0-1

[Event "*** Titled Tuesday Blitz"]
[Site "Chess.com"]
[Date "2021.02.09"]
[Round "3"]
[White "Vanina1989"]
[Black "MITerryble"]
[Result "1/2-1/2"]
[WhiteElo "2703"]
[BlackElo "2949"]
[TimeControl "180+1"]
[EndTime "10:30:24 PST"]
[Termination "Game drawn by repetition"]

1. d4 {[%clk 0:03:00.9]} 1... e6 {[%clk 0:02:59.3]} 2. c4 {[%clk 0:02:56.7]}
2... Bb4+ {[%clk 0:02:58.5]} 3. Bd2 {[%clk 0:02:56.3]} 3... Qe7 {[%clk
0:02:58.2]} 4. Nf3 {[%clk 0:02:55.9]} 4... Nf6 {[%clk 0:02:57.9]} 5. g3 {[%clk
0:02:56.4]} 5... Nc6 {[%clk 0:02:57.6]} 6. a3 {[%clk 0:02:45.1]} 6... Bxd2+
{[%clk 0:02:57.2]} 7. Qxd2 {[%clk 0:02:45.3]} 7... O-O {[%clk 0:02:55.5]} 8. Bg2
{[%clk 0:02:45.1]} 8... d6 {[%clk 0:02:55.9]} 9. O-O {[%clk 0:02:44.7]} 9... e5
{[%clk 0:02:56.1]} 10. Nc3 {[%clk 0:02:44.5]} 10... Re8 {[%clk 0:02:50.1]} 11.
Rac1 {[%clk 0:02:40.2]} 11... e4 {[%clk 0:02:42.7]} 12. Ng5 {[%clk 0:02:33.3]}
12... Bf5 {[%clk 0:02:42.4]} 13. Nd5 {[%clk 0:02:31.7]} 13... Qd8 {[%clk
0:02:40.4]} 14. Nh3 {[%clk 0:02:00.9]} 14... h6 {[%clk 0:01:43.3]} 15. Nhf4
{[%clk 0:01:59]} 15... Nxd5 {[%clk 0:01:34.9]} 16. cxd5 {[%clk 0:01:53.8]} 16...
Ne7 {[%clk 0:01:35]} 17. f3 {[%clk 0:01:53.8]} 17... e3 {[%clk 0:01:18]} 18.
Qxe3 {[%clk 0:01:25.5]} 18... Nxd5 {[%clk 0:01:17.6]} 19. Qd2 {[%clk 0:01:21.2]}
19... Ne3 {[%clk 0:01:17]} 20. Rfe1 {[%clk 0:01:20.4]} 20... g5 {[%clk
0:01:11.3]} 21. Nd3 {[%clk 0:01:15.8]} 21... c6 {[%clk 0:01:10.9]} 22. Nf2
{[%clk 0:01:15.3]} 22... Qb6 {[%clk 0:01:06.8]} 23. Nd1 {[%clk 0:01:03.8]} 23...
Nxg2 {[%clk 0:01:00.2]} 24. Kxg2 {[%clk 0:01:03.6]} 24... d5 {[%clk 0:01:00.6]}
25. Nf2 {[%clk 0:01:01.9]} 25... Rad8 {[%clk 0:00:59.5]} 26. h4 {[%clk
0:01:01.3]} 26... f6 {[%clk 0:00:59.5]} 27. Rh1 {[%clk 0:00:58.7]} 27... Kf7
{[%clk 0:00:57.9]} 28. hxg5 {[%clk 0:00:56]} 28... hxg5 {[%clk 0:00:58.8]} 29.
g4 {[%clk 0:00:56.4]} 29... Bg6 {[%clk 0:00:57.9]} 30. Rh3 {[%clk 0:00:48.7]}
30... Rh8 {[%clk 0:00:51.6]} 31. Rch1 {[%clk 0:00:48.8]} 31... Rxh3 {[%clk
0:00:50.9]} 32. Rxh3 {[%clk 0:00:49]} 32... Re8 {[%clk 0:00:44.2]} 33. e3 {[%clk
0:00:43.4]} 33... Qb3 {[%clk 0:00:34.7]} 34. f4 {[%clk 0:00:42.5]} 34... Qc2
{[%clk 0:00:32.7]} 35. Qxc2 {[%clk 0:00:36.7]} 35... Bxc2 {[%clk 0:00:33.6]} 36.
f5 {[%clk 0:00:35.5]} 36... Kg7 {[%clk 0:00:31.7]} 37. Kf3 {[%clk 0:00:33.8]}
37... a5 {[%clk 0:00:26.9]} 38. Rh1 {[%clk 0:00:30.6]} 38... a4 {[%clk 0:00:27]}
39. Rc1 {[%clk 0:00:29.8]} 39... Bb3 {[%clk 0:00:27.3]} 40. Nd3 {[%clk 0:00:27]}
40... Bc4 {[%clk 0:00:26.9]} 41. Nc5 {[%clk 0:00:26.8]} 41... b5 {[%clk
0:00:26.8]} 42. Ne6+ {[%clk 0:00:26.7]} 42... Kg8 {[%clk 0:00:20.4]} 43. Rh1
{[%clk 0:00:26.6]} 43... b4 {[%clk 0:00:20.7]} 44. axb4 {[%clk 0:00:26]} 44...
Rb8 {[%clk 0:00:20.5]} 45. Ra1 {[%clk 0:00:21.5]} 45... Rxb4 {[%clk 0:00:19.5]}
46. Nc5 {[%clk 0:00:21.8]} 46... Bb5 {[%clk 0:00:18.9]} 47. Ra2 {[%clk
0:00:21.8]} 47... Kf7 {[%clk 0:00:14]} 48. Kf2 {[%clk 0:00:21.5]} 48... Ke7
{[%clk 0:00:14.1]} 49. Ke1 {[%clk 0:00:21.4]} 49... Kd6 {[%clk 0:00:13.1]} 50.
Kd2 {[%clk 0:00:20.4]} 50... Kc7 {[%clk 0:00:13.2]} 51. Kc3 {[%clk 0:00:20.6]}
51... Rc4+ {[%clk 0:00:13.4]} 52. Kd2 {[%clk 0:00:21.1]} 52... Rb4 {[%clk
0:00:11.2]} 53. Kc2 {[%clk 0:00:21.3]} 53... Bc4 {[%clk 0:00:07.7]} 54. Rxa4
{[%clk 0:00:20.4]} 54... Bb3+ {[%clk 0:00:08]} 55. Nxb3 {[%clk 0:00:19.5]} 55...
Rxa4 {[%clk 0:00:08.4]} 56. Kd3 {[%clk 0:00:19.7]} 56... Rb4 {[%clk 0:00:07.7]}
57. Kc3 {[%clk 0:00:19.7]} 57... Rb8 {[%clk 0:00:08.2]} 58. Nc5 {[%clk
0:00:18.6]} 58... Rh8 {[%clk 0:00:09.1]} 59. e4 {[%clk 0:00:19]} 59... Rh3+
{[%clk 0:00:08.2]} 60. Kc2 {[%clk 0:00:18.7]} 60... dxe4 {[%clk 0:00:04.3]} 61.
Nxe4 {[%clk 0:00:18.5]} 61... Rh4 {[%clk 0:00:02.6]} 62. Nxf6 {[%clk 0:00:18]}
62... Kd6 {[%clk 0:00:03.5]} 63. Kc3 {[%clk 0:00:17.9]} 63... Rh3+ {[%clk
0:00:03.2]} 64. Kc4 {[%clk 0:00:17.8]} 64... Rh4 {[%clk 0:00:03.1]} 65. Ne4+
{[%clk 0:00:18.1]} 65... Ke7 {[%clk 0:00:00.9]} 66. Nxg5 {[%clk 0:00:18.3]}
66... Rxg4 {[%clk 0:00:01.4]} 67. Nf3 {[%clk 0:00:17.9]} 67... Rf4 {[%clk
0:00:01.6]} 68. Ne5 {[%clk 0:00:18.1]} 68... Kd6 {[%clk 0:00:02.5]} 69. Nf7+
{[%clk 0:00:17.8]} 69... Ke7 {[%clk 0:00:02.7]} 70. Ne5 {[%clk 0:00:18]} 70...
Kd6 {[%clk 0:00:02.3]} 71. Nf7+ {[%clk 0:00:18.3]} 71... Ke7 {[%clk 0:00:02.2]}
72. Ne5 {[%clk 0:00:18]} 1/2-1/2